bitfinex/quotes_SOLUSD_20251126
["timestamp","ask_amount","ask_price","bid_price","bid_amount"]
[1764179504336,7.09219858,141.0,140.97,3.2]
[1764179504539,14.08657926,141.0,140.97,3.2]
[1764179504845,7.09219858,141.0,140.97,3.2]
[1764179505166,7.09219858,141.0,140.97,10.86438068]
[1764179505357,7.09219858,141.0,140.98,7.66438068]
[1764179506173,7.09219858,141.0,140.98,6.99438068]
[1764179506445,24.81978647,141.02,140.97,10.19438068]
[1764179506766,24.81978647,141.02,140.97,10.86438068]
[1764179508342,25.52978647,141.02,140.97,10.86438068]
[1764179508548,32.52416715,141.02,140.97,10.86438068]
[1764179510963,25.52978647,141.02,140.98,6.99438068]
[1764179512571,25.52978647,141.02,140.98,12.15703578]
[1764179513249,24.81978647,141.02,140.99,12.15703578]
[1764179513454,36.97973081,141.0,140.94,0.67]
[1764179513656,36.97973081,141.0,140.95,15.35703578]
[1764179513848,36.97973081,141.0,140.98,12.15703578]
[1764179513849,7.09219858,141.0,140.98,12.15703578]
[1764179514045,7.09219858,141.0,140.96,0.67]
[1764179514572,7.09219858,141.0,140.97,12.15703578]
[1764179514781,7.09219858,141.0,140.98,3.2]
[1764179515582,0.71,141.0,140.98,3.2]
[1764179515861,24.82149268,141.01,140.98,3.2]
[1764179516149,25.53149268,141.01,140.98,3.2]
[1764179517073,24.82149268,141.01,140.98,3.2]
[1764179517568,17.72979706,141.01,140.98,3.2]
[1764179517866,17.72979706,141.01,140.98,3.87]
[1764179518071,17.72979706,141.01,140.98,3.2]
[1764179518659,17.72979706,141.01,140.98,15.35703578]
[1764179519271,17.72979706,141.01,140.98,16.02703578]
[1764179519766,7.09119273,141.02,140.99,12.15703578]
[1764179520350,7.09119273,141.02,141.0,12.82703578]
[1764179520560,0.71,141.01,140.98,3.2]
[1764179520872,12.15703578,141.02,140.98,3.87]
[1764179521072,12.15703578,141.03,140.98,16.02703578]
[1764179521254,24.81565513,141.04,141.0,12.15703578]
[1764179521773,17.72546795,141.04,141.0,12.15703578]
[1764179521954,29.88250373,141.04,140.98,3.2]
[1764179522150,12.86703578,141.03,140.98,3.2]
[1764179522372,0.71,141.03,140.98,15.35703578]
[1764179522578,0.71,141.03,140.98,16.02703578]
[1764179523074,29.88250373,141.04,140.99,12.82703578]
[1764179523254,12.15703578,141.03,140.98,3.2]
[1764179523461,12.86703578,141.03,140.98,3.2]
[1764179523773,36.97269091,141.04,140.99,0.67]
[1764179523977,36.97269091,141.04,140.99,12.82703578]
[1764179524172,37.68269091,141.04,140.99,0.67]
[1764179524474,37.68269091,141.04,140.99,12.82703578]
[1764179524656,7.09018718,141.04,140.98,10.29302008]
[1764179524862,7.09018718,141.04,141.01,12.15703578]
[1764179525059,7.09018718,141.04,141.02,3.2]
[1764179525476,7.09018718,141.04,141.02,16.02703578]
[1764179525981,529.84990542,141.07,141.03,62.87703578]
[1764179526169,529.84990542,141.07,141.05,50.0]
[1764179526170,522.76103987,141.07,141.05,50.0]
[1764179526375,522.76103987,141.07,141.06,15.35703578]
[1764179526773,25.11880892,141.03,140.9,21.29396316]
[1764179527080,9.09426806,140.96,140.87,9.50224282]
[1764179527294,1.99999999,140.99,140.87,9.50224282]
[1764179527295,12.15703578,140.92,140.87,62.15703578]
[1764179527576,3.2,141.03,140.92,50.0]
[1764179527757,7.0932047,140.98,140.94,12.15703578]
[1764179528101,7.09281466,140.99,140.96,12.15703578]
[1764179528273,24.82185518,141.01,140.97,12.15703578]
[1764179528470,25.52185518,141.01,140.97,12.15703578]
[1764179528679,3.2,141.04,140.99,12.15703578]
[1764179528680,12.85703578,141.04,140.99,12.15703578]
[1764179528994,7.7891819,141.06,141.02,12.15703578]
[1764179529153,7.7891819,141.06,141.03,3.2]
[1764179529594,0.7,141.05,141.03,3.2]
[1764179529883,7.09018718,141.04,141.03,3.2]
[1764179530086,522.76103987,141.07,141.03,3.2]
[1764179530265,522.76103987,141.07,141.04,12.15703578]
[1764179530472,522.76103987,141.07,141.05,12.15703578]
[1764179530675,522.76103987,141.07,141.06,3.2]
[1764179530861,522.76103987,141.07,141.06,15.35703578]
[1764179531061,522.76103987,141.07,141.06,3.2]
[1764179531387,522.76103987,141.07,141.06,16.07703578]
[1764179532560,529.84971924,141.07,141.06,3.2]
[1764179532764,522.76103987,141.07,141.06,3.2]
[1764179533660,522.76103987,141.07,141.06,16.07703578]
[1764179534265,522.76103987,141.07,141.06,3.2]
[1764179534466,522.76103987,141.07,141.05,50.0]
[1764179534668,522.76103987,141.07,141.06,3.2]
[1764179535608,530.56971924,141.07,141.01,50.0]
[1764179535781,542.72675502,141.07,141.02,3.2]
[1764179536078,542.72675502,141.07,141.03,12.15703578]
[1764179536270,522.76103987,141.07,141.04,12.15703578]
[1764179536476,522.76103987,141.07,141.05,3.2]
[1764179537077,522.76103987,141.07,141.06,0.71]
[1764179537392,522.76103987,141.07,141.05,53.2]
[1764179537591,522.76103987,141.07,141.06,3.2]
[1764179538361,529.84971924,141.07,141.06,3.2]
[1764179538565,522.76103987,141.07,141.06,3.91]
[1764179538766,522.76103987,141.07,141.06,3.2]
[1764179539171,522.76103987,141.07,141.06,73.15621768]
[1764179539670,522.76103987,141.07,141.06,60.9991819]
[1764179539870,522.76103987,141.07,141.06,73.15621768]
[1764179540065,522.76103987,141.07,141.05,50.0]
[1764179540278,522.76103987,141.07,141.06,3.2]
[1764179540685,522.76103987,141.07,141.06,16.06703578]
[1764179540894,522.76103987,141.07,141.06,66.06703578]
[1764179541881,522.76103987,141.07,141.06,16.06703578]
[1764179542878,522.76103987,141.07,141.06,3.91]
[1764179543286,522.76103987,141.07,141.06,73.15621768]
[1764179545566,522.76103987,141.07,141.06,73.44054082]
[1764179545788,312.90300482,141.07,141.06,70.09344996]
[1764179545965,312.90300482,141.07,141.05,50.0]
[1764179546166,312.90300482,141.07,141.06,3.2]
[1764179547188,312.90300482,141.07,141.06,53.91]
[1764179547575,325.0600406,141.07,141.06,3.2]
[1764179548186,312.90300482,141.07,141.06,3.2]
[1764179549283,319.99168419,141.07,141.06,3.2]
[1764179549589,332.86871997,141.07,141.03,3.2]
[1764179549797,332.86871997,141.07,140.99,50.0]
[1764179549798,12.15703578,141.04,140.99,50.0]
[1764179549980,12.15703578,141.0,140.93,50.71]
[1764179550177,12.15703578,141.0,140.94,3.2]
[1764179550178,12.15703578,140.95,140.94,3.2]
[1764179550498,3.2,141.02,140.96,50.0]
[1764179550499,12.15703578,140.98,140.96,50.0]
[1764179550790,0.72,141.01,140.97,3.2]
[1764179551395,0.72,141.03,140.98,50.71]
[1764179551594,7.81072661,141.03,140.99,50.0]
[1764179551776,7.80970022,141.05,141.0,53.2]
[1764179551974,0.72,141.05,141.01,50.0]
[1764179552170,12.15703578,141.06,141.01,62.86703578]
[1764179552472,12.15703578,141.06,141.02,50.0]
[1764179552687,19.2463465,141.06,141.03,3.2]
[1764179552894,0.72,141.05,141.03,3.2]
[1764179553382,12.87703578,141.06,141.03,3.2]
[1764179553783,332.14906202,141.07,141.03,3.2]
[1764179553993,332.14906202,141.07,141.03,11.00065252]
[1764179553994,312.90300482,141.07,141.03,11.00065252]
[1764179554175,312.90300482,141.07,141.03,23.1576883]
[1764179554594,312.90300482,141.07,141.04,50.0]
[1764179554902,312.90300482,141.07,141.05,3.2]
[1764179555778,312.90300482,141.07,141.05,23.15625599]
[1764179555979,312.90300482,141.07,141.05,3.2]
[1764179556190,312.90300482,141.07,141.06,12.15703578]
[1764179556393,312.90300482,141.07,141.05,15.35703578]
[1764179556703,320.71174996,141.07,141.06,3.2]
[1764179557892,338.4334484,141.07,141.02,50.0]
[1764179558136,12.15703578,141.03,140.97,50.0]
[1764179558280,12.15703578,141.01,140.98,3.2]
[1764179558707,0.72,141.01,140.98,3.2]
[1764179559001,12.15703578,141.02,140.98,3.2]
[1764179559180,12.87703578,141.02,140.98,3.2]
[1764179559376,0.72,141.02,140.98,65.35703578]
[1764179559790,7.09124272,141.02,140.98,73.16015451]
[1764179560185,7.09124272,141.02,140.98,72.45015451]
[1764179560386,7.09124272,141.02,140.98,73.16015451]
[1764179560999,7.09124272,141.02,140.98,66.06703578]
[1764179561400,19.24817388,141.03,140.98,66.06703578]
[1764179561605,19.96817388,141.03,140.98,73.16011209]
[1764179562405,19.96817388,141.03,140.98,66.06703578]
[1764179562581,12.15703578,141.02,140.98,53.91]
[1764179562786,12.15703578,141.01,140.98,53.2]
[1764179562986,19.96922397,141.01,140.98,53.2]
[1764179563201,12.15703578,140.99,140.92,62.15703578]
[1764179563515,12.15703578,140.93,140.89,50.0]
[1764179563816,12.15703578,140.93,140.9,3.2]
[1764179563984,12.87703578,140.93,140.9,3.2]
[1764179564184,0.72,140.93,140.9,3.2]
[1764179564612,24.82142725,141.01,140.93,50.0]
[1764179564811,12.84703578,140.99,140.94,15.35703578]
[1764179564986,7.78319626,140.99,140.94,60.29508336]
[1764179565186,7.78319626,140.99,140.95,12.15703578]
[1764179565404,7.092352,141.0,140.96,3.2]
[1764179565595,0.69,140.99,140.96,15.35703578]
[1764179566913,7.7831777,140.99,140.96,15.35703578]
[1764179567285,7.7831777,140.99,140.88,57.7880903]
[1764179567286,12.15703578,140.97,140.88,57.7880903]
[1764179567486,12.15703578,140.93,140.89,3.2]
[1764179567706,0.69,140.98,140.89,3.2]
[1764179567911,12.15703578,140.94,140.89,65.35703578]
[1764179568215,12.15703578,140.95,140.9,12.15703578]
[1764179568412,12.15703578,140.95,140.91,3.2]
[1764179568722,0.69,140.95,140.91,3.2]
[1764179569010,7.78508445,140.95,140.91,15.35703578]
[1764179569190,7.78508445,140.95,140.91,3.2]
[1764179569509,0.69,140.94,140.91,3.2]
[1764179569715,19.25137062,140.96,140.91,15.35703578]
[1764179569889,0.69,140.95,140.91,3.2]
[1764179570091,0.69,140.95,140.91,15.35703578]
[1764179570294,12.84703578,140.95,140.91,3.2]
[1764179570510,0.69,140.95,140.91,3.2]
[1764179570701,0.69,140.94,140.91,3.2]
[1764179571220,12.15703578,140.92,140.87,50.0]
[1764179571418,12.15703578,140.91,140.88,3.2]
[1764179571796,0.69,140.91,140.88,3.2]
[1764179572291,12.15703578,140.93,140.88,15.35703578]
[1764179572492,7.7853559,140.94,140.88,3.2]
[1764179572798,7.78532028,140.94,140.91,12.15703578]
[1764179572999,12.84703578,140.93,140.92,3.2]
[1764179573309,19.94286652,140.93,140.9,3.2]
[1764179573504,37.68216972,140.93,140.9,3.2]
[1764179573712,0.69,140.92,140.9,3.2]
[1764179574416,7.0967284,140.91,140.9,3.2]
[1764179574809,32.52044608,140.91,140.85,6.99189666]
[1764179575010,6.99189666,140.88,140.83,57.19189666]
[1764179575194,6.99189666,140.86,140.83,0.2]
[1764179575599,6.99189666,140.84,140.83,0.2]
[1764179575797,7.68189666,140.85,140.83,0.2]
[1764179575997,7.68189666,140.84,140.83,0.2]
[1764179576411,14.78215226,140.84,140.83,0.2]
[1764179576809,32.53279128,140.84,140.78,0.2]
[1764179577012,6.99189666,140.79,140.78,0.2]
[1764179577215,0.69,140.83,140.78,0.2]
[1764179577521,7.68189666,140.82,140.78,0.2]
[1764179577719,7.7902556,140.84,140.8,6.99189666]
[1764179578022,7.7902556,140.84,140.79,50.0]
[1764179578331,7.7902556,140.84,140.8,6.99189666]
[1764179578642,0.69,140.87,140.82,6.99189666]
[1764179579100,14.78076562,140.87,140.82,6.99189666]
[1764179579421,6.99189666,140.86,140.81,3.2]
[1764179579635,6.99189666,140.85,140.81,3.2]
[1764179579930,0.69,140.85,140.81,10.19189666]
[1764179580094,0.69,140.84,140.82,6.99189666]
[1764179580294,0.69,140.84,140.81,10.19189666]
[1764179580707,0.28432314,140.89,140.81,10.30167855]
[1764179581024,6.99189666,140.86,140.81,3.2]
[1764179581228,6.99189666,140.84,140.81,3.2]
[1764179581398,6.99189666,140.83,140.78,7.19189666]
[1764179581600,6.99189666,140.82,140.78,0.2]
[1764179582013,0.69,140.81,140.78,0.2]
[1764179582222,0.69,140.81,140.78,7.19189666]
[1764179583024,0.69,140.81,140.78,10.39189666]
[1764179583412,7.79177193,140.81,140.78,10.39189666]
[1764179583818,17.75259061,140.83,140.78,10.39189666]
[1764179583819,14.09277075,140.83,140.78,10.39189666]
[1764179584020,7.68189666,140.82,140.78,3.4]
[1764179584398,7.68189666,140.81,140.78,3.4]
[1764179584601,7.10227272,140.8,140.78,0.2]
[1764179584807,7.79227272,140.8,140.78,0.2]
[1764179585020,0.69,140.79,140.78,0.2]
[1764179585615,14.09376524,140.81,140.78,0.2]
[1764179585812,0.68,140.8,140.78,0.2]
[1764179586006,7.10186858,140.81,140.78,0.2]
[1764179586215,0.68,140.81,140.78,7.19189666]
[1764179586417,6.99189666,140.79,140.76,0.2]
[1764179586729,14.09568297,140.77,140.76,0.2]
[1764179586905,8.80994492,140.76,140.73,0.2]
[1764179587099,6.99189666,140.74,140.73,0.2]
[1764179587323,7.67189666,140.74,140.73,0.2]
[1764179588627,14.77719721,140.74,140.73,0.2]
[1764179589016,23.87146527,140.74,140.73,1e-08]
[1764179589212,57.94358065,140.74,140.71,1e-08]
[1764179589436,39.10260224,140.72,140.69,0.2]
[1764179589733,8.80994492,140.69,140.64,0.2]
[1764179589938,12.00994492,140.69,140.64,0.2]
[1764179590150,6.99189666,140.65,140.64,0.2]
[1764179590438,8.80994492,140.62,140.54,3.2]
[1764179590655,7.05437375,140.56,140.52,7.20852214]
[1764179590928,7.11403509,140.57,140.5,0.21191786]
[1764179591108,0.61,140.57,140.5,50.89191786]
[1764179591310,14.71585791,140.57,140.52,0.21662548]
[1764179591513,6.99189666,140.55,140.48,0.21417132]
[1764179591706,6.99189666,140.53,140.48,3.41417132]
[1764179591910,10.31350601,140.58,140.52,7.20852214]
[1764179592240,6.99189666,140.55,140.5,7.20381452]
[1764179592427,0.61,140.57,140.5,7.20381452]
[1764179592634,6.99189666,140.55,140.51,0.89542895]
[1764179592835,7.11392063,140.57,140.51,0.89542895]
[1764179593036,26.62226384,140.58,140.52,0.21662548]
[1764179593229,6.99189666,140.54,140.51,0.68]
[1764179593633,28.48431372,140.65,140.53,6.99189666]
[1764179593822,28.48431372,140.65,140.57,6.99189666]
[1764179593823,7.1099416,140.65,140.57,6.99189666]
[1764179594024,0.61,140.65,140.57,6.99189666]
[1764179594224,3.2,140.67,140.58,50.72]
[1764179594541,10.3089092,140.67,140.59,0.72]
[1764179594721,10.3089092,140.67,140.59,7.71189666]
[1764179594722,6.99189666,140.64,140.59,7.71189666]
[1764179594924,6.99189666,140.65,140.6,7.71189666]
[1764179595243,16.918864,140.75,140.64,6.99189666]
[1764179595417,29.83365972,140.75,140.65,7.71189666]
[1764179595618,6.99189666,140.71,140.65,0.72]
[1764179595817,0.61,140.74,140.66,7.71189666]
[1764179596122,6.99189666,140.71,140.66,0.72]
[1764179596334,16.308864,140.72,140.66,0.72]
[1764179596637,6.99189666,140.7,140.66,0.72]
[1764179596841,7.10690489,140.71,140.66,0.72]
[1764179597136,7.02792418,140.7,140.66,0.72]
[1764179597550,0.03602752,140.7,140.66,0.72]
[1764179597717,0.03602752,140.7,140.67,6.99189666]
[1764179598154,0.03602752,140.7,140.68,0.72]
[1764179599024,0.03602752,140.7,140.69,6.99189666]
[1764179599448,0.03602752,140.7,140.69,7.71189666]
[1764179600634,0.03602752,140.7,140.66,0.72]
[1764179600953,0.03602752,140.7,140.68,6.99189666]
[1764179601427,0.03602752,140.7,140.69,6.99189666]
[1764179601629,0.03602752,140.7,140.69,7.71189666]
[1764179601841,7.10378631,140.77,140.69,10.91189666]
[1764179602148,7.10378631,140.77,140.74,6.99189666]
[1764179602649,7.10378631,140.77,140.75,6.99189666]
[1764179602834,24.8632521,140.77,140.75,6.99189666]
[1764179603036,7.10378631,140.77,140.75,6.99189666]
[1764179603354,16.308864,140.77,140.75,6.99189666]
[1764179604244,16.308864,140.75,140.74,6.99189666]
[1764179605037,23.41374636,140.75,140.74,6.99189666]
[1764179605347,20.95820429,140.78,140.74,6.99189666]
[1764179605348,10.30337436,140.78,140.74,7.71189666]
[1764179605555,7.10337436,140.78,140.77,6.99189666]
[1764179605936,7.1028406,140.79,140.75,0.72]
[1764179606134,17.75295521,140.83,140.78,6.99189666]
[1764179606341,24.85371499,140.83,140.79,6.99189666]
[1764179606543,24.85371499,140.83,140.8,6.99189666]
[1764179607056,24.85371499,140.83,140.81,6.99189666]
[1764179607256,7.10075978,140.83,140.81,7.71189666]
[1764179607553,17.7497064,140.85,140.82,6.99189666]
[1764179607554,7.10037686,140.84,140.82,6.99189666]
[1764179607739,7.10037686,140.84,140.83,6.99189666]
[1764179608250,7.10037686,140.84,140.82,0.72]
[1764179608251,7.10037686,140.84,140.82,7.71189666]
[1764179609054,16.45184158,140.83,140.78,6.99189666]
[1764179609255,7.2762198,140.82,140.76,0.72]
[1764179609433,8.80994492,140.79,140.74,0.72]
[1764179609636,9.09426806,140.78,140.73,6.99189666]
[1764179610143,9.09426806,140.78,140.73,7.71189666]
[1764179610350,9.09426806,140.78,140.73,6.99189666]
[1764179610545,9.09426806,140.78,140.75,6.99189666]
[1764179610952,7.10378631,140.77,140.75,7.71189666]
[1764179611153,7.10378631,140.77,140.72,3.92]
[1764179611333,24.8632521,140.77,140.73,0.72]
[1764179611534,24.8632521,140.77,140.64,6.99189666]
[1764179611535,0.28432314,140.73,140.64,6.99189666]
[1764179611758,10.4762198,140.73,140.68,6.99189666]
[1764179612143,10.4762198,140.73,140.68,7.71189666]
[1764179612350,8.80994492,140.72,140.68,0.72]
[1764179612660,3.2,140.73,140.69,7.71189666]
[1764179613039,3.2,140.73,140.66,3.2]
[1764179613040,6.99189666,140.71,140.66,3.2]
[1764179613243,6.99189666,140.71,140.66,3.92]
[1764179613448,6.99189666,140.71,140.66,7.71189666]
[1764179613653,7.10591459,140.73,140.7,6.99189666]
[1764179613971,7.10591459,140.73,140.72,6.99189666]
[1764179614440,7.10591459,140.73,140.69,6.99189666]
[1764179614645,14.09781125,140.73,140.69,6.99189666]
[1764179614865,7.10591459,140.73,140.69,6.99189666]
[1764179615163,31.86232485,140.73,140.69,6.99189666]
[1764179615356,28.07042819,140.73,140.69,6.99189666]
[1764179615737,28.07042819,140.73,140.7,6.99189666]
[1764179615935,16.73616472,140.72,140.68,6.99189666]
[1764179616554,16.73616472,140.72,140.67,6.99189666]
[1764179616754,16.08616472,140.7,140.66,6.99189666]
[1764179616964,24.88269585,140.66,140.6,0.72]
[1764179617265,24.88269585,140.66,140.53,20.36086828]
[1764179617266,6.99189666,140.61,140.53,0.72]
[1764179617441,3.2,140.6,140.55,6.99189666]
[1764179617650,9.09426806,140.65,140.59,6.99189666]
[1764179617851,16.308864,140.64,140.61,6.99189666]
[1764179618044,28.08269585,140.66,140.58,50.0]
[1764179618045,44.39155985,140.66,140.58,50.0]
[1764179618242,44.39155985,140.66,140.63,6.99189666]
[1764179618445,23.41820567,140.66,140.59,0.72]
[1764179618747,23.41820567,140.66,140.59,53.92]
[1764179618952,23.41820567,140.66,140.6,7.83233518]
[1764179619169,16.308864,140.66,140.65,6.99189666]
[1764179619376,7.10984713,140.65,140.61,0.72]
[1764179619670,7.10984713,140.65,140.64,6.99189666]
[1764179620042,23.41834961,140.66,140.64,7.71189666]
[1764179620243,7.10948561,140.66,140.65,6.99189666]
[1764179620444,7.10898464,140.67,140.65,6.99189666]
[1764179620744,7.10898464,140.67,140.66,6.99189666]
[1764179620948,7.10843325,140.68,140.66,6.99189666]
[1764179621154,7.10843325,140.68,140.67,6.99189666]
[1764179621355,7.10843325,140.68,140.66,6.99189666]
[1764179622055,7.10843325,140.68,140.64,0.72]
[1764179622265,24.87926065,140.68,140.66,6.99189666]
[1764179622660,7.10843325,140.68,140.66,6.99189666]
[1764179622959,28.31880892,140.69,140.66,6.99189666]
[1764179622960,7.10799125,140.69,140.67,6.99189666]
[1764179623366,24.87755554,140.69,140.67,6.99189666]
[1764179623558,9.09426806,140.68,140.63,0.72]
[1764179623759,9.09426806,140.68,140.65,6.99189666]
[1764179624161,24.87755554,140.69,140.67,6.99189666]
[1764179624162,41.18641954,140.69,140.67,6.99189666]
[1764179624363,23.41685525,140.69,140.68,6.99189666]
[1764179624565,7.10799125,140.69,140.68,6.99189666]
[1764179624747,0.65,140.78,140.68,7.71189666]
[1764179624951,10.30378631,140.77,140.69,0.72]
[1764179625171,16.308864,140.74,140.72,6.99189666]
[1764179625469,16.308864,140.74,140.73,6.99189666]
[1764179626466,28.0632521,140.77,140.73,6.99189666]
[1764179626859,24.8632521,140.77,140.71,0.72]
[1764179627066,7.10580544,140.73,140.72,6.99189666]
[1764179627269,7.10580544,140.73,140.71,0.72]
[1764179627577,7.10580544,140.73,140.67,0.72]
[1764179627753,31.8622157,140.73,140.68,6.99189666]
[1764179627952,9.09426806,140.71,140.66,6.99189666]
[1764179628158,32.39502872,140.71,140.65,10.91189666]
[1764179628358,6.99189666,140.7,140.65,3.92]
[1764179628555,9.09426806,140.68,140.63,6.99189666]
[1764179628758,6.99189666,140.66,140.62,0.72]
[1764179628963,6.99189666,140.67,140.62,7.71189666]
[1764179629254,7.10934167,140.66,140.63,6.99189666]
[1764179629461,24.88269585,140.66,140.63,6.99189666]
[1764179629667,24.88269585,140.66,140.63,7.71189666]
[1764179630260,7.10934167,140.66,140.63,7.71189666]
[1764179630777,7.10934167,140.66,140.64,6.99189666]
[1764179631073,9.09426806,140.66,140.59,50.0]
[1764179631276,24.88109081,140.67,140.63,6.99189666]
[1764179631778,24.88109081,140.67,140.63,0.72]
[1764179631966,3.2,140.66,140.63,7.71189666]
[1764179632674,3.2,140.66,140.62,6.99189666]
[1764179633054,24.88446497,140.65,140.62,7.71189666]
[1764179633267,41.19332897,140.65,140.61,6.99189666]
[1764179633469,41.19332897,140.65,140.6,6.99189666]
[1764179633470,48.18522563,140.65,140.6,6.99189666]
[1764179633872,48.83522563,140.65,140.6,6.99189666]
[1764179634077,0.65,140.64,140.6,6.99189666]
[1764179634264,83.73446132,140.65,140.6,6.99189666]
[1764179634463,84.38446132,140.65,140.6,6.99189666]
[1764179634655,41.84332897,140.65,140.6,0.72]
[1764179634982,48.18522563,140.65,140.6,7.71189666]
[1764179635558,16.08616472,140.64,140.6,0.72]
[1764179635759,3.2,140.63,140.59,6.99189666]
[1764179635980,3.2,140.63,140.59,7.71189666]
[1764179636165,3.2,140.63,140.6,7.71189666]
[1764179636578,3.2,140.63,140.6,12.2242406]
[1764179636868,16.308864,140.61,140.56,3.92]
[1764179637071,16.308864,140.61,140.58,12.2242406]
[1764179637272,0.65,140.68,140.6,12.2242406]
[1764179637485,3.2,140.67,140.63,12.2242406]
[1764179637678,3.2,140.67,140.63,12.9442406]
[1764179637980,7.10833096,140.68,140.6,3.2]
[1764179638180,15.4242406,140.66,140.62,12.2242406]
[1764179638370,3.2,140.66,140.62,12.2242406]
[1764179638566,16.308864,140.67,140.64,12.2242406]
[1764179638884,28.07915836,140.68,140.65,12.9442406]
[1764179639057,28.07915836,140.68,140.65,0.72]
[1764179639384,28.07915836,140.68,140.62,3.92]
[1764179639385,24.87915836,140.68,140.62,3.92]
[1764179639558,37.10339896,140.68,140.64,12.2242406]
[1764179639761,37.10339896,140.68,140.63,12.2242406]
[1764179639960,9.09426806,140.67,140.63,12.2242406]
[1764179640285,21.96850866,140.67,140.63,12.2242406]
[1764179640662,21.31850866,140.67,140.63,12.2242406]
[1764179641189,8.80994492,140.72,140.66,12.2242406]
[1764179641478,24.86855193,140.74,140.64,0.72]
[1764179641479,16.308864,140.71,140.64,0.72]
[1764179641679,16.308864,140.71,140.68,12.2242406]
[1764179641887,16.308864,140.71,140.69,12.2242406]
[1764179642086,24.86501846,140.76,140.7,12.2242406]
[1764179642269,16.308864,140.73,140.67,100.0]
[1764179642467,7.10429099,140.76,140.72,12.2242406]
[1764179642684,7.10429099,140.76,140.74,12.2242406]
[1764179642685,23.41315499,140.76,140.74,12.2242406]
[1764179642866,7.10328171,140.78,140.75,12.9442406]
[1764179643063,7.10328171,140.78,140.77,12.2242406]
[1764179643293,7.10227272,140.8,140.77,12.2242406]
[1764179643585,7.10227272,140.8,140.79,12.2242406]
[1764179643767,7.10227272,140.8,140.78,0.72]
[1764179643962,3.2,140.82,140.79,12.2242406]
[1764179643963,7.10126402,140.82,140.79,12.2242406]
[1764179644167,7.10126402,140.82,140.81,12.2242406]
[1764179644803,7.10092922,140.83,140.81,12.2242406]
[1764179645082,23.40979322,140.83,140.82,12.2242406]
[1764179645283,7.10092922,140.83,140.82,12.2242406]
[1764179645490,10.39988912,140.85,140.82,12.2242406]
[1764179645698,10.39988912,140.85,140.83,12.2242406]
[1764179646082,28.79926789,140.85,140.82,12.2242406]
[1764179646391,45.10813189,140.85,140.81,12.2242406]
[1764179646697,45.10813189,140.85,140.79,12.9442406]
[1764179646873,9.45994492,140.84,140.78,3.2]
[1764179647069,28.14926789,140.85,140.81,12.2242406]
[1764179647373,0.1,140.85,140.84,12.2242406]
[1764179647988,0.1,140.85,140.84,12.9442406]
[1764179648218,7.19765731,140.9,140.84,62.9442406]
[1764179648370,7.19765731,140.9,140.89,12.2242406]
[1764179650189,0.1,140.9,140.89,12.9442406]
[1764179650390,7.19723207,140.9,140.89,12.9442406]
[1764179650690,7.19723207,140.9,140.89,12.2242406]
[1764179650894,7.19723207,140.9,140.89,12.9442406]
[1764179651190,0.1,140.9,140.89,12.9442406]
[1764179651778,0.1,140.9,140.89,12.2242406]
[1764179651972,0.1,140.9,140.79,50.0]
[1764179651973,16.308864,140.87,140.79,50.0]
[1764179652180,16.308864,140.87,140.84,12.2242406]
[1764179652372,28.5331046,140.87,140.83,12.2242406]
[1764179652873,28.5331046,140.87,140.84,0.72]
[1764179652874,16.308864,140.87,140.84,0.72]
[1764179653070,28.5331046,140.87,140.83,12.9442406]
[1764179653275,7.09924747,140.86,140.82,12.2242406]
[1764179653483,12.2242406,140.85,140.8,0.72]
[1764179654975,12.2242406,140.82,140.77,12.2242406]
[1764179655176,12.2242406,140.82,140.77,15.4242406]
[1764179655398,7.10077835,140.83,140.78,0.7]
[1764179655602,38.83339434,140.84,140.79,12.2242406]
[1764179656106,3.2,140.86,140.81,12.2242406]
[1764179656274,12.2242406,140.84,140.8,3.9]
[1764179656899,12.2242406,140.85,140.8,16.1242406]
[1764179657100,28.70736616,140.86,140.8,16.1242406]
[1764179657394,7.1002556,140.84,140.8,16.1242406]
[1764179657781,24.85089462,140.84,140.8,15.4242406]
[1764179657974,24.85089462,140.84,140.81,12.9242406]
[1764179658174,24.85089462,140.84,140.8,16.1242406]
[1764179658398,37.07513522,140.84,140.8,3.2]
[1764179658597,24.85089462,140.84,140.8,15.4242406]
[1764179658900,24.85089462,140.84,140.82,12.2242406]